Workbook

Sheet Titel
A4: Wissensmanagement-Fitness-Check für KMU
A6: Testen Sie Ihr Unternehmen in nur 10 Minuten.
A8: Inhalt:
A19: Wissensdomänen | D19: Umgang mit Wissen | F19: Rahmenbedingungen
A20: Die zentralen Wissensgebiete identifizieren | D20: Die Kernaktivitäten im Umgang mit Wissen bewerten | F20: Die WM- Erfolgsfaktoren bewerten

Sheet Anleitung
A2: Anleitung: Wissensmanagement-Fitness-Check für KMU
A3: Wozu soll ich den Fitness-Check durchführen?
C4: Der Fitness-Check hilft Ihnen, in nur 10 Minuten den Umgang mit Wissen in Ihrem Unternehmen einzuschätzen.
C5: Was leistet der Fitness-Check?
C7: Der Fitness-Check ist in drei Teile gegliedert:
C8: Im ersten Teil bewerten Sie die Wissensdomänen, d.h. die zentralen Wissensgebiete in Ihrer Organisation.
C9: Im zweiten Teil beurteilen Sie, wie die vier Wissensmanagement-Kernaktivitäten (Wissen teilen, speichern, erzeugen und anwenden) in Ihrem Unternehmen umgesetzt werden.
C10: Der dritte Teil des Fitness-Checks dient Ihnen zur Einschätzung der erforderlichen Rahmenbedingungen für Wissensmanagement in Ihrer Organisation.
C12: Wie komme ich zu den Ergebnissen des Fitness-Checks?
C14: Der Fitness-Check ist ein interaktives elektronisches Verfahren. Sie müssen daher die Excel-Datei nicht ausdrucken, sondern können diese direkt am Rechner ausfüllen. Am Ende erhalten Sie automatisch den Fitness-Report. Navigieren Sie dazu über die Reiter am unteren Bildschirmrand durch die einzelnen Teile des Fragebogens. Natürlich steht es Ihnen frei, den Fragebogen auch auszudrucken und den Papierbogen auszufüllen, jedoch stehen Ihnen dann die praktischen Auswertungsfunktionen nicht zur Verfügung.
C16: Was ist der Fitness-Report?
C18: Der Fitness-Report liefert Ihnen die Ergebnisse Ihres Fitness-Checks und orientiert sich dabei an drei oben genannten Schwerpunkten: Teil I - Wissensdomänen: Sie erfahren, wo Diskrepanzen zwischen benötigtem und verfügbarem Wissen bestehen. Teil II - Kernaktivitäten: Sie erhalten einen Überblick, in welchen Bereichen der Umgang mit Wissen verbessert werden sollte. Teil III - Rahmenbedingungen: Das Ergebnis zeigt, auf welchen Ebenen Verbesserungsbedarf besteht (z.B. Unternehmenskultur, Mitarbeiter- und Führungsebene oder technische Voraussetzungen).
C20: Wie geht es nach dem Fitness-Check weiter?
C22: Sie haben die Stärken und Schwächen im Umgang mit Wissen bewertet. Der nächste Schritt kann nun darin bestehen, Wege zu finden, das Wissensmanagement in Ihrem Unternehmen mit konkreten Lösungen voranzutreiben. Hierzu bietet Ihnen die ProWis-Lösungsbox eine umfassende Auswahl geeigneter Hilfsmittel an. Ferner kann es sinnvoll sein zunächst die Analyse zu vertiefen bzw. einen größeren Teil-nehmerkreis einzubeziehen. Hier können z.B. die bewährten ProWis-Methoden "GPO-WM-Analyse" und "WM-Audit" eingesetzt werden. Weitere Informationen finden Sie unter

Sheet I. Wissensdomänen
C3: I. Wissensdomänen (die zentralen Wissensgebiete Ihres Unternehmens)
C5: Wissensbedarf
C6: Wie wichtig sind die folgenden Wissensgebiete für die Erledigung Ihrer zentralen Aufgaben?
C7: Wissensdomäne | D7: gar nicht wichtig | E7: eher unwichtig | F7: teils- teils | G7: eher wichtig | H7: sehr wichtig
C8: Wissen über Kunden
C9: Wissen über Partner
C10: Fach- und Methodenwissen
C11: Wissen über Produkte
C12: Wissen über Normen und Gesetze
C13: Wissen über Patente
C14: Wissen über Märkte u. Wettbewerber
C15: Wissen über die eigene Organisation
C17: Wissensverfügbarkeit
C18: Wie schätzen Sie die jeweilige Verfügbarkeit des Wissens ein?
C19: Wissensdomäne | D19: nie verfügbar | E19: selten verfügbar | F19: manchmal verfügbar | G19: häufig verfügbar | H19: immer verfügbar
C20: Wissen über Kunden
C21: Wissen über Partner
C22: Fach- und Methodenwissen
C23: Wissen über Produkte
C24: Wissen über Normen und Gesetze
C25: Wissen über Patente
C26: Wissen über Märkte u. Wettbewerber
C27: Wissen über die eigene Organisation

Sheet II. Umgang mit Wissen
B3: II. Umgang mit Wissen im Unternehmen
B5: Wissen erzeugen | D5: Nein | E5: Eher nicht | F5: teils- teils | G5: Eher ja | H5: Ja, immer
B6: Wird nach Projektabschluss systematisch und strukturiert über Projekterfahrungen diskutiert?
B7: Wird Wissen über das externe Umfeld (z.B. Märkte, Wettbewerber) systematisch erzeugt?
B8: Wird der Kunde gezielt in die Erzeugung von neuem Wissen und Lösungen einbezogen?
B11: Wissen speichern | D11: Nein | E11: Eher nicht | F11: teils- teils | G11: Eher ja | H11: Ja, immer
B12: Sind Sie mit den Möglichkeiten zufrieden, gespeichertes Wissen (in Dokumenten) schnell zu finden?
B13: Wissen Sie, wo Wissen abgelegt werden muss, um es anderen Nutzern zur Verfügung zu stellen?
B14: Werden nach Projektabschluss Projekterfahrungen dokumentiert und zentral abgelegt?
B16: Wissen verteilen | D16: Nein | E16: Eher nicht | F16: teils- teils | G16: Eher ja | H16: Ja, immer
B17: Tauschen Sie sich abteilungsübergreifend über Ihre Erfahrungen aus?
B18: Ist die Bereitschaft in Ihrem Unternehmen hoch, Wissen weiterzugeben bzw. zu teilen?
B19: Werden die formellen Methoden zum Wissensaustausch effizient eingesetzt (z.B. regelmäßige Besprechungen, Berichtswesen)?
B21: Wissen anwenden | D21: Nein | E21: Eher nicht | F21: teils- teils | G21: Eher ja | H21: Ja, immer
B22: Werden die Erfahrungen vergangener Projekte in neuen Projekten systematisch genutzt?
B23: Ist es für Sie transparent, wer über welches Wissen im Unternehmen verfügt?
B24: Setzen Sie bei der Lösung von Aufgaben vorhandenes Wissen zielgerichtet ein?

Sheet III. Rahmenbedingungen
B3: III. Rahmenbedingungen Technik - Organisation - Mensch (TOM)
B6: Technik
G7: Nein | H7: Eher nicht | I7: teils- teils | J7: Eher ja | K7: Ja, immer
B8: Werden Sie durch die vorhandenen IT-Systeme ausreichend in Ihrer Arbeit unterstützt?
B9: Werden Sie ausreichend in die IT-Systeme eingewiesen?
B10: Sind Sie mit der Datenqualität (Aktualität, Vollständigkeit, Zuverlässigkeit) zufrieden?
B11: Ermöglicht die Nutzung der IT-Systeme schnell auf alle relevanten Informationen zugreifen zu können?
B12: Ist das Arbeiten in den gemeinsamen Verzeichnisstrukturen zufriedenstellend?
B13: Organisation
G14: Nein | H14: Eher nicht | I14: teils- teils | J14: Eher ja | K14: Ja, immer
B15: Wissen Sie wer im Unternehmen für welche Aufgaben zuständig ist?
B16: Sind die allgemeinen Abläufe im Unternehmen transparent?
B17: Die Unternehmenskultur lässt sich am besten mit folgenden Merkmalen beschreiben:
B20: verschlossen | H20: offen
B21: unehrlich | H21: ehrlich
B22: Schuld zuweisend | H22: tolerant gegenüber Fehlern
B23: starr | H23: flexibel
B28: Mensch
B30: Mitarbeiterkompetenzen | G30: Nein | H30: Eher nicht | I30: teils- teils | J30: Eher ja | K30: Ja, immer
B31: Werden die Kompetenzen der Mitarbeiter entsprechend aktueller Anforderungen kontinuierlich weiterentwickelt?
B32: Sind die Kompetenzen der Mitarbeiter ausreichend transparent?
B33: Sind die Mitarbeiter ausreichend hoch motiviert ihr Wissen zu teilen?
B39: Führung
B40: Bitte schätzen Sie Ihre Führungskraft hinsichtlich der genannten Aktivitäten ein.
G41: Nein | H41: Eher nicht | I41: teils- teils | J41: Eher ja | K41: Ja, immer
B42: Meine Führungskraft ist vorbildlich im Umgang mit Wissen und lebt Wissensmanagement vor.
B43: Meine Führungskraft fördert die abteilungsübergreifende Zusammenarbeit
B44: Meine Führungskraft bringt mir Anerkennung entgegen, wenn ich Wissen aktiv teile.

Sheet Fitness-Report
C3: Fitness-Report
C13: Auswertung Teil I: Wissensdomänen - Wissensbedarf vs. Wissensverfügbarkeit
D38: Mit Hilfe dieses Ergebnisses ist es Ihnen möglich, zentrale Wissensgebiete in Ihrer Organisation zu identifizieren, in denen Handlungsbedarf besteht. Achten Sie auch auf die Wissensgebiete, bei denen Wichtigkeit und Verfügbarkeit am weitesten auseinander liegen und überlegen Sie, woran das liegen kann.
D40: =IF(Datenblatt!D7>0, "Ihre wichtigsten Wissensdomänen sind:","") -> 
D41: =IF(D40="","","1.") ->  | E41: =IF(D41>"", Datenblatt!AZ3," ") -> 
D42: =IF(D40="","","2.") ->  | E42: =IF(D40>"", Datenblatt!AZ4,"") -> 
D43: =IF(D40="","","3.") ->  | E43: =IF(D40>"", Datenblatt!AZ5,"") -> 
D44: =IF(Datenblatt!I15="1","4.","") ->  | E44: =IF(D44>"", Datenblatt!AZ6,"") -> 
D45: =IF(Datenblatt!K15=2,"5.","") ->  | E45: =IF(D45>"", Datenblatt!AZ7,"") -> 
D47: Wo sollten wir anfangen und worauf sollen wir uns konzentrieren? Die hohe Wichtigkeit eines Wissensgebietes kann darauf hinweisen, an welcher Stelle die vertiefte Beschäftigung mit Wissensmanagement sinnvoll sein kann. Durch dieses Ergebnis können Sie Prioritäten setzen! Wichtige Wissensgebiete sollten Vorrang haben und ein systematisches Wissensmanagement sollte sich auf dieses Wissen zunächst konzentrieren. Diese Fokussierung hilft insbesondere den Mitarbeitern, da klar eingegrenzt werden kann, worauf sich die Verbesserungsmaßnahmen beziehen werden.
C54: Auswertung Teil II: Umgang mit Wissen
C60: Wissen erzeugen
C66: Wissen speichern
C72: Wissen verteilen
C77: Wissen anwenden
C85: Wissen erzeugen | G85: =Datenblatt!AC26 -> 
C86: =Datenblatt!AB26 -> 
G87: =IF(Datenblatt!AB25<=100%, Datenblatt!AG26, "") -> Bei der Wissenserzeugung wird neues Wissen intern entwickelt oder aus dem Umfeld des Unternehmens bezogen. Die Erzeugung von Wissen weist oft hohen kreativen schöpferischen Anteil auf. Der Einsatz von Methoden zur bewussten Steuerung dieses Prozesses, wie z.B. die Diskussion und Reflexion von Projekterfahrungen, wird hier hinterfragt. Neues Wissen kann aber auch durch Schulungen, Kundengesprächen oder durch die Einstellung neuer Mitarbeiter erworben werden.
C91: Wissen speichern | G91: =Datenblatt!H26 -> 
C92: =Datenblatt!G26 -> 
G93: =IF(Datenblatt!G25<=100%, Datenblatt!L26, "") -> Die Speicherung von Wissen kann auf der individuellen (Bindung der Person an das Unternehmen), der kollektiven (Teambuilding) oder der elektronischen Ebene stattfinden. Im Kern geht es darum, wichtiges Wissen im Unternehmen zu bewahren. Die Güte der Kernaktivität äußert sich sowohl in der Schnelligkeit, in der Wissen gefunden werden kann, als auch in der Aktualität des Wissens. Einheitliche Speicherstrukturen und -regeln werden hier beispielsweise hinsichtlich ihrer Effizienz bewertet.
C99: Wissen verteilen | G99: =Datenblatt!R26 -> 
C100: =Datenblatt!Q26 -> 
G101: =IF(Datenblatt!Q25<=100%,Datenblatt!W26,"") -> Um Wissen für die relevanten Personen nutzbar zu machen, muss es verteilt werden. Das Teilen von Wissen wird durch die technische Infrastruktur erleichtert, ersetzt jedoch nicht die Bereitschaft jedes einzelnen Mitarbeiters zur Wissensteilung. Neben formellen Verfahren zum Wissensaustausch (z.B. Besprechungen) spielen hier auch kulturelle Aspekte eine Rolle. Eine Differenzierzung nach abteilungsinterner und abteilungsübergreifender Wissensteilung kann wichtige Ansatzpunkte für die Einführung von Wissensmanagement liefern.
C106: Wissen anwenden | G106: =Datenblatt!AL26 -> 
C107: =Datenblatt!AK26 -> 
G108: =IF(Datenblatt!AK25<=100%, Datenblatt!AP26, "") -> Wissen schafft erst durch seine Anwendung wert. Der zielgerichtete Einsatz von Wissen zur Lösung einer Aufgabenstellung wird unter der Anwendung von Wissen betrachtet. Wichtig ist hierbei auch die Transparenz über Wissensträger im Unternehmen. Ist diese gegebenen, so kann schnell auf deren Erfahrungen zurückgegriffen werden.
C115: Auswertung Teil III: Rahmenbedingungen - Technik - Organisation - Mensch (TOM)
C118: Technik
C122: Organisation
C125: Mensch
C129: Technik | F129: =Datenblatt!$H$41 -> 
C130: =Datenblatt!G41 -> 
F131: =IF(Datenblatt!G40<=100%, Datenblatt!L41, "") -> Die Informationstechnik bietet zahlreiche Lösungen an, die ein wirksames Wissensmanagement unterstützen. Hierzu zählt z.B. ein gut funktionierendes Intranet oder andere IT-Anwendungen, die Kommunikation und Kooperation erleichtern sowie den bedarfsgerechten Zugriff auf Informationen ermöglichen. Das Gestaltungsfeld "Technik" kann folglich dabei helfen, das Wissensmanagement in Unternehmen wesentlich zu entwickeln.
C138: Organisation | F138: =Datenblatt!R41 -> 
C139: =Datenblatt!Q41 -> 
F140: =IF(Datenblatt!Q40<=100%, Datenblatt!W41, "") -> Die Durchdringung der Organisation mit Wissensmanagement hängt maßgeblich davon ab, inwiefern die vorhandenen Strukturen und Prozesse eine reibungslose Ausführung der WM-Kernaktivitäten ermöglichen. Im Gestaltungsfeld "Organisation" gilt es ferner, eine offene Wissen- und Kommunikationskultur zwischen einzelnen Abteilungen, Teams und Mitarbeitern zu fördern.
C150: Mensch
F151: =Datenblatt!AC41 -> 
C152: =Datenblatt!AB41 ->  | F152: =IF(Datenblatt!AB40<=100%, Datenblatt!AG41, "") -> Die Mitarbeiter und Führungskräfte eines Unternehmens sind Träger von Wissen, Erfahrungen und Kompetenzen. Sie stellen die Erfolgsfaktoren des Unternehmens dar. Im Gestaltungsfeld "Mensch" betrachten Sie daher beispielsweise Qualifikationen und zeigen Entwicklungsbedarfe auf. Fehlen wichtige Kompetenzen im Unternehmen, kommt dem Personalmanagement die Aufgabe zu, passende Fortbildungs- und Qualifizierungskonzepte auszuarbeiten.
D159: Wie geht es nach dem Fitness-Check weiter? Lösungen: Sie haben die Stärken und Schwächen Ihres Unternehmens im Umgang mit Wissen bewertet. Der nächste Schritt ist nun Wissensmanagement aktiv zu etablieren. Hierzu bietet Ihnen ProWis eine umfangreiche Lösungsbox mit rund 50 WM-Methoden an. Stöbern Sie in der Lösungssammlung und picken Sie sich die Methoden zur Umsetzung von Wissensmanagement heraus, die zu Ihrer Organisation am besten passen. Vertiefung der Analyse 1. GPO-WM-Analyse: Bewerten Sie mithilfe der GPO-WM-Analyse den Umgang mit Wissen innerhalb ausgewählter Geschäftsprozesse. Wählen Sie dabei insbesondere die Wissensdomänen aus, die im Fitness-Check die größte Bedeutung bzw. die größte Differenz zwischen Verfügbarkeit und Relevanz aufweisen. 2. Mitarbeiterbefragung: Sie können die Analyse auch insofern vertiefen, dass Sie eine Mitarbeiterbefragung zum Thema Wissensmanagement in Ihrem Unternehmen durchführen. Der Fitness-Check kann hier als Grundlage dienen!

Sheet Kontakt
B3: Kontaktinformationen
B5: Für alle Fragen zu ProWis und zum Fitness-Check steht Ihnen das Fraunhofer Kompetenz-Team jederzeit gern zur Verfügung.
D10: Dipl.-Kfm. Ronald Orth
D11: Competence Center Wissensmanagement
D12: Tel. +49 (0) 30/ 3 90 06-171
D13: Fax +49 (0) 30/ 3 93 25 03
D17: Dr.-Ing. Ina Kohl
D18: Competence Center Wissensmanagement
D19: Tel. +49 (0) 30 / 3 90 06-264
D20: Fax +49 (0) 30 / 3 93 25 03
D28: Dipl.-Wirtsch.-Inf. Stefan Voigt
D29: Logistik- und Fabriksysteme
D30: Tel. +49 (0) 391 / 40 90-713
D31: Fax +49 (0) 391 / 40 90-555
D36: Praxisbeispiele und weiterführende Informationen zum ProWis-Vorgehen finden Sie in unserem Springer-Buch.

Sheet Datenblatt (hidden)
AZ1: Ranking
C2: Datenblatt | AZ2: Bedarf | BB2: Verfügbarkeit | BD2: Kombiniert
AZ3: =VLOOKUP(BA3,$R$7:$S$14,2,FALSE) -> Wissen über Kunden | BA3: =LARGE(R7:R14,1) -> 0.0081 | BB3: =VLOOKUP(BC3,$T$7:$U$14,2,FALSE) -> Wissen über Kunden | BC3: =LARGE(T7:T14,1) -> 0.008 | BD3: =VLOOKUP(BE3,$P$7:$S$14,2,FALSE) -> Wissen über die eigene Organisation | BE3: =LARGE($P$7:$P$14,1) -> 0.0008 | BF3: =VLOOKUP(BE3,$P$7:$V$14,7,FALSE) -> 
D4: 1. Wissensbedarf und -verfügbarkeit (Rohdaten) | R4: Vorbereitung Ranking | AZ4: =VLOOKUP(BA4,$R$7:$S$14,2,FALSE) -> Wissen über Partner | BA4: =LARGE(R7:R14,2) -> 0.0072 | BB4: =VLOOKUP(BC4,$T$7:$U$14,2,FALSE) -> Wissen über Partner | BC4: =LARGE(T7:T14,2) -> 0.007 | BD4: =VLOOKUP(BE4,$P$7:$S$14,2,FALSE) -> Wissen über Märkte u. Wettbewerber | BE4: =LARGE($P$7:$P$14,2) -> 0.0007 | BF4: =VLOOKUP(BE4,$P$7:$V$14,7,FALSE) -> 
D5: Wissensbedarf | I5: Wissensverfügbarkeit | N5: Auswertung | P5: kombiniert | R5: Anpassung Wissensbedarf | T5: Anpassung Wissensverfügbarkeit | V5: Text | AZ5: Fach- und Methodenwissen | BA5: =LARGE(R7:R14,3) -> 0.0063 | BB5: Fach- und Methodenwissen | BC5: =LARGE(T7:T14,3) -> 0.006 | BD5: Wissen über Patente | BE5: =LARGE($P$7:$P$14,3) -> 0.0006
D6: gewichtete Punktzahl | I6: gewichtete Punktzahl | AZ6: Wissen über Produkte | BA6: =LARGE(R7:R14,4) -> 0.0054 | BB6: Wissen über Produkte | BC6: =LARGE(T7:T14,4) -> 0.005 | BD6: Wissen über Normen und Gesetze | BE6: =LARGE($P$7:$P$14,4) -> 0.0005
D7: 0 | E7: Wissen über Kunden | I7: 0 | K7: =IF(OR(D7=0,I7=0),"",IF(D7=I7,"Sehr gut! Sie wissen über Ihre Kunden bescheid.",IF(I7<D7,"Sie benötigen mehr Wissen über Ihre Kunden, um deren Wünsche optimal bedienen zu können. Machen Sie sich z.B. mit den internen und externen Rahmenbedingungen Ihrer Kunden vertraut.","Wenn Sie mehr über Ihre Kunden wissen als Sie derzeit für Ihr operatives Geschäft benötigen, dann liegt dort vielleicht Potenzial für weitere Geschäftstätigkeiten."))) ->  | P7: =ABS(T7-R7) -> 0.0001 | Q7: Wissen über Kunden | R7: =D7+0.0081 -> 0.0081 | S7: Wissen über Kunden | T7: =I7+0.008 -> 0.008 | U7: Wissen über Kunden | V7: =IF(OR(D7=0,I7=0),"",IF(D7=I7,"Sehr gut! Sie wissen über Ihre Kunden bescheid.",IF(D7<I7,"Sie benötigen mehr Wissen über Ihre Kunden, um deren Wünsche optimal bedienen zu können. Machen Sie sich z.B. mit den internen und externen Rahmenbedingungen Ihrer Kunden vertraut.","Wenn Sie mehr über Ihre Kunden wissen als Sie derzeit für Ihr operatives Geschäft benötigen, dann liegt dort vielleicht Potenzial für weitere Geschäftstätigkeiten."))) ->  | AZ7: Wissen über Normen und Gesetze | BA7: =LARGE(R7:R14,5) -> 0.0045 | BB7: Wissen über Normen und Gesetze | BC7: =LARGE(T7:T14,5) -> 0.004 | BD7: Wissen über Produkte | BE7: =LARGE($P$7:$P$14,5) -> 0.0004
D8: 0 | E8: Wissen über Partner | I8: 0 | K8: =IF(OR(D8=0,I8=0),"",IF(D8=I8,"Sehr gut! Sie wissen über Ihre Partnerunternehmen bescheid.",IF(I8<D8,"Sie benötigen mehr Wissen über Ihre Geschäftspartner um ihre täglichen Geschäftsabläufe optimal zu gestalten. Verständigen Sie sich miteinander u.a. über (gemeinsame) Ziele, Strategien, Strukturen und Ansprechpartner.","Sie wissen mehr über Ihre Geschäftspartner als Sie derzeit für Ihr operatives Geschäft benötigen, vielleicht liegt dort Potenzial für weitere Geschäftstätigkeiten."))) ->  | P8: =ABS(T8-R8) -> 0.0002 | Q8: Wissen über Partner | R8: =D8+0.0072 -> 0.0072 | S8: Wissen über Partner | T8: =I8+0.007 -> 0.007 | U8: Wissen über Partner | V8: =IF(OR(D8=0,I8=0),"",IF(D8=I8,"Sehr gut! Sie wissen über Ihre Partnerunternehmen bescheid.",IF(D8<I8,"Sie benötigen mehr Wissen über Ihre Geschäftspartner um ihre täglichen Geschäftsabläufe optimal zu gestalten. Verständigen Sie sich miteinander u.a. über (gemeinsame) Ziele, Strategien, Strukturen und Ansprechpartner.","Sie wissen mehr über Ihre Geschäftspartner als Sie derzeit für Ihr operatives Geschäft benötigen, vielleicht liegt dort Potenzial für weitere Geschäftstätigkeiten."))) ->  | AZ8: Wissen über Patente | BA8: =LARGE(R7:R14,6) -> 0.0036 | BB8: Wissen über Patente | BC8: =LARGE(T7:T14,6) -> 0.003 | BD8: Fach- und Methodenwissen | BE8: =LARGE($P$7:$P$14,6) -> 0.0003
D9: 0 | E9: Fach- und Methodenwissen | I9: 0 | K9: =IF(OR(D9=0,I9=0),"",IF(D9=I9,"Sehr gut! Sie können in vollem Umfang auf ihr Fach- und Methodenwissen zurückgreifen.",IF(I9<D9,"In Ihrem Unternehmen werden zusätzliche fach- und methodenspezifische Kenntnisse benötigt, um ihre Geschäftstätigkeit optimal zu führen. Wissensmanagement hilft, Spezialisten zu identifizieren und gezielte Aus- und Weiterbildung erweitert Kompetenzen.","In Ihrem Unternehmen sind Fach- und Methodenkompetenz als Ressource reichlich vorhanden, vielleicht birgt dies Potenzial für weitere Geschäftstätigkeiten."))) ->  | P9: 0.0003 | Q9: Fach- und Methodenwissen | R9: =D9+0.0063 -> 0.0063 | S9: Fach- und Methodenwissen | T9: =I9+0.006 -> 0.006 | U9: Fach- und Methodenwissen | V9: =IF(OR(D9=0,I9=0),"",IF(D9=I9,"Sehr gut! Sie können in vollem Umfang auf ihr Fach- und Methodenwissen zurückgreifen.",IF(D9<I9,"In Ihrem Unternehmen werden zusätzliche fach- und methodenspezifische Kenntnisse benötigt, um ihre Geschäftstätigkeit optimal zu führen. Wissensmanagement hilft, Spezialisten zu identifizieren und gezielte Aus- und Weiterbildung erweitert Kompetenzen.","In Ihrem Unternehmen sind Fach- und Methodenkompetenz als Ressource reichlich vorhanden, vielleicht birgt dies Potenzial für weitere Geschäftstätigkeiten."))) ->  | AZ9: Wissen über Märkte u. Wettbewerber | BA9: =LARGE(R7:R14,7) -> 0.0027 | BB9: Wissen über Märkte u. Wettbewerber | BC9: =LARGE(T7:T14,7) -> 0.002 | BD9: Wissen über Partner | BE9: =LARGE($P$7:$P$14,7) -> 0.0002
D10: 0 | E10: Wissen über Produkte | I10: 0 | K10: =IF(OR(D10=0,I10=0),"",IF(D10=I10,"Sehr gut! Sie haben das Wissen über die Produkte Ihrer Branche greifbar, um es zur Erreichung Ihrer Geschäftsziele einzusetzen.",IF(I10<D10,"Sie benötigen mehr Wissen über die Produkte Ihrer Branche, um am Wettbewerb erfolgreich teilzunehmen. Eine zentrale Rolle spielt hier das Wissen über Eigenschaft und Funktionalität Ihrer Produkte und Technologien.","Sie wissen mehr über die Produkte Ihrer Branche als Sie derzeit für Ihr operatives Geschäft benötigen, das macht Sie zu einem wichtigen Wissensträger innerhalb Ihres Geschäftsfeldes."))) ->  | P10: 0.0004 | Q10: Wissen über Produkte | R10: =D10+0.0054 -> 0.0054 | S10: Wissen über Produkte | T10: =I10+0.005 -> 0.005 | U10: Wissen über Produkte | V10: =IF(OR(D10=0,I10=0),"",IF(D10=I10,"Sehr gut! Sie haben das Wissen über die Produkte Ihrer Branche greifbar, um es zur Erreichung Ihrer Geschäftsziele einzusetzen.",IF(D10<I10,"Sie benötigen mehr Wissen über die Produkte Ihrer Branche, um am Wettbewerb erfolgreich teilzunehmen. Eine zentrale Rolle spielt hier das Wissen über Eigenschaft und Funktionalität Ihrer Produkte und Technologien.","Sie wissen mehr über die Produkte Ihrer Branche als Sie derzeit für Ihr operatives Geschäft benötigen, das macht Sie zu einem wichtigen Wissensträger innerhalb Ihres Geschäftsfeldes."))) ->  | AZ10: Wissen über die eigene Organisation | BA10: =LARGE(R7:R14,8) -> 0.0018 | BB10: Wissen über die eigene Organisation | BC10: =LARGE(T7:T14,8) -> 0.001 | BD10: Wissen über Kunden | BE10: =LARGE($P$7:$P$14,8) -> 0.0001
D11: 0 | E11: Wissen über Normen und Gesetze | I11: 0 | K11: =IF(OR(D11=0,I11=0),"",IF(D11=I11,"Sehr gut! Sie kennen die Normen und Gesetze, die für Ihr Geschäftsfeld relevant sind.",IF(I11<D11,"Sie benötigen mehr Wissen über Normen und Gesetze Ihrer Branche, um sich rechtlich auf sicherem Parkett zu bewegen. Benötigen Sie z.B. Kenntnisse zum Handels-, Arbeits- oder Patentrecht, Produkthaftungsgesetzen, Umweltrichtlinien oder Verpackungsnormen?","Wenn Sie mehr über Normen und Gesetze bezüglich Ihrer Unternehmenstätigkeit wissen als Sie derzeit für Ihr operatives Geschäft benötigen, dann liegt dort vielleicht Potenzial für weitere Geschäftstätigkeiten oder Einsparungen."))) ->  | P11: 0.0005 | Q11: Wissen über Normen und Gesetze | R11: =D11+0.0045 -> 0.0045 | S11: Wissen über Normen und Gesetze | T11: =I11+0.004 -> 0.004 | U11: Wissen über Normen und Gesetze | V11: =IF(OR(D11=0,I11=0),"",IF(D11=I11,"Sehr gut! Sie kennen die Normen und Gesetze, die für Ihr Geschäftsfeld relevant sind.",IF(D11<I11,"Sie benötigen mehr Wissen über Normen und Gesetze Ihrer Branche, um sich rechtlich auf sicherem Parkett zu bewegen. Benötigen Sie z.B. Kenntnisse zum Handels-, Arbeits- oder Patentrecht, Produkthaftungsgesetzen, Umweltrichtlinien oder Verpackungsnormen?","Wenn Sie mehr über Normen und Gesetze bezüglich Ihrer Unternehmenstätigkeit wissen als Sie derzeit für Ihr operatives Geschäft benötigen, dann liegt dort vielleicht Potenzial für weitere Geschäftstätigkeiten oder Einsparungen."))) -> 
D12: 0 | E12: Wissen über Patente | I12: 0 | K12: =IF(OR(D12=0,I12=0),"",IF(D12=I12,"Sehr gut! Ihr Wissen über Patente passt genau zu Ihren zentralen Aufgaben.",IF(I12<D12,"Sie benötigen mehr Wissen über Patente, um ggf. geistiges Eigentum Ihres Unternehmens zu sichern oder um von bestimmtem Patentwissen Gebrauch machen zu können.","Sie wissen mehr über Patente als Sie derzeit für Ihr operatives Geschäft benötigen, vielleicht liegt dort Potenzial für weitere Geschäftstätigkeiten."))) ->  | P12: 0.0006 | Q12: Wissen über Patente | R12: =D12+0.0036 -> 0.0036 | S12: Wissen über Patente | T12: =I12+0.003 -> 0.003 | U12: Wissen über Patente | V12: =IF(OR(D12=0,I12=0),"",IF(D12=I12,"Sehr gut! Ihr Wissen über Patente passt genau zu Ihren zentralen Aufgaben.",IF(D12<I12,"Sie benötigen mehr Wissen über Patente, um ggf. geistiges Eigentum Ihres Unternehmens zu sichern oder um von bestimmtem Patentwissen Gebrauch machen zu können.","Sie wissen mehr über Patente als Sie derzeit für Ihr operatives Geschäft benötigen, vielleicht liegt dort Potenzial für weitere Geschäftstätigkeiten."))) -> 
D13: 0 | E13: Wissen über Märkte u. Wettbewerber | I13: 0 | K13: =IF(OR(D13=0,I13=0),"",IF(D13=I13,"Sehr gut! Sie kennen Wettbewerber und Markt und haben keine Probleme auf dieses Wissen zuzugreifen.",IF(I13<D13,"Sie benötigen mehr Wissen über den Markt und Ihre Wettbewerber? Betrachten Sie Ihr Unternehmensumfeld näher (z.B. Absatz- und Beschaffungsmärkte, Markttrends, Marktanteile, Markteintrittsbarrieren oder Stärken und Schwächen der Wettbewerber).","Sie wissen mehr über den Markt und Ihre Wettbewerber als Sie derzeit für Ihr operatives Geschäft benötigen, vielleicht liegt dort Potenzial für weitere Geschäftstätigkeiten."))) ->  | P13: 0.0007 | Q13: Wissen über Märkte u. Wettbewerber | R13: =D13+0.0027 -> 0.0027 | S13: Wissen über Märkte u. Wettbewerber | T13: =I13+0.002 -> 0.002 | U13: Wissen über Märkte u. Wettbewerber | V13: =IF(OR(D13=0,I13=0),"",IF(D13=I13,"Sehr gut! Sie kennen Wettbewerber und Markt und haben keine Probleme auf dieses Wissen zuzugreifen.",IF(D13<I13,"Sie benötigen mehr Wissen über den Markt und Ihre Wettbewerber? Betrachten Sie Ihr Unternehmensumfeld näher (z.B. Absatz- und Beschaffungsmärkte, Markttrends, Marktanteile, Markteintrittsbarrieren oder Stärken und Schwächen der Wettbewerber).","Sie wissen mehr über den Markt und Ihre Wettbewerber als Sie derzeit für Ihr operatives Geschäft benötigen, vielleicht liegt dort Potenzial für weitere Geschäftstätigkeiten."))) -> 
D14: 0 | E14: Wissen über die eigene Organisation | I14: 0 | K14: =IF(OR(D14=0,I14=0),"",IF(D14=I14,"Sehr gut! Sie kennen Ihre Organisation so gut wie es für Ihre Wettbewerbsfähigkeit notwendig ist.",IF(I14<D14,"Sie wollen mehr über Ihre Organisation wissen, können das Wissen (z.b. aufbau- und ablauforganisatorischen Aspekte der eigenen Organisation) jedoch derzeit nicht erschließen. Wissensmanagement kann Ihnen dabei helfen.","Sie wissen mehr über Ihre Organisation als derzeit für Ihr operatives Geschäft notwendig ist, vielleicht liegt dort Potenzial für weitere Geschäftstätigkeiten."))) ->  | P14: 0.0008 | Q14: Wissen über die eigene Organisation | R14: =D14+0.0018 -> 0.0018 | S14: Wissen über die eigene Organisation | T14: =I14+0.001 -> 0.001 | U14: Wissen über die eigene Organisation | V14: =IF(OR(D14=0,I14=0),"",IF(D14=I14,"Sehr gut! Sie kennen Ihre Organisation so gut wie es für Ihre Wettbewerbsfähigkeit notwendig ist.",IF(D14<I14,"Sie wollen mehr über Ihre Organisation wissen, können das Wissen (z.b. aufbau- und ablauforganisatorischen Aspekte der eigenen Organisation) jedoch derzeit nicht erschließen. Wissensmanagement kann Ihnen dabei helfen.","Sie wissen mehr über Ihre Organisation als derzeit für Ihr operatives Geschäft notwendig ist, vielleicht liegt dort Potenzial für weitere Geschäftstätigkeiten."))) -> 
C15: Die wichtigsten WD: | D15: =COUNTIF($D$7:$D$14,"5") -> 0 | E15: =COUNTIF($D$7:$D$14,"4") -> 0 | F15: =COUNTIF($D$7:$D$14,"3") -> 0 | G15: =COUNTIF($D$7:$D$14,"2") -> 0 | H15: =COUNTIF($D$7:$D$14,"1") -> 0 | I15: =IF(D15>=4,"1",IF(AND(D15=0,E15>3),"1",IF(AND(D15=2,E15>1),"1",IF(AND(D15=1,E15>2),"1","0")))) -> 0 | J15: =IF(AND((D15+E15)>4,D15<>4),"1","0") -> 0 | K15: =I15+J15 -> 0
D16: 2. Umgang mit Wissen | AQ16: Satzbausteine
AQ17: >50% | AR17: Handlungsbedarf: Hoch
F18: Anpassung zu Eindeutigkeit | G18: Speicherung von Wissen | P18: Anpassung zu Eindeutigkeit | Q18: Verteilung von Wissen | AB18: Erzeugung von Wissen | AK18: Wissensanwendung | AQ18: x<80% | AR18: Handlungsbedarf: Mittel
C19: "Suchzeiten nach gespeichertem Wissen" | F19: =G19+0.001 -> €0.00 | G19: 0 | L19: Suchzeiten | M19: "abteilungsübergreifender Austausch von Wissen" | P19: =Q19+0.001 -> €0.00 | Q19: 0 | V19: abteilungsübergreifender Austausch | X19: "Transparenz der Wissensträger" | AA19: =AB19+0.001 -> €0.00 | AB19: 0 | AG19: Transparenz | AH19: "Projekterfahrungen sichern" | AJ19: =AK19+0.001 -> €0.00 | AK19: 0 | AL19: =IF(AK19=0,"",IF(AND($AK$25<=75%,AK19<5),CONCATENATE($AR$21,$AU$21,$AL$20),"")) ->  | AM19: Projekterfahrung sichern | AQ19: x=100% | AR19: Handlungsbedarf: Gering
AL20: Überprüfen Sie bspw. ob Sie ein Vorgehen anwenden, mit dem Projekte systematisch abgeschlossen und aufgearbeitet werden. Oft reicht es schon die wichtigsten Besonderheiten eines Projekts zu notieren oder sie in einer Lessons-Learned-Runde anderen Mitarbeitern darzulegen.
C21: "Ablageorte des gespeicherten Wissens" | F21: =G21+0.002 -> €0.00 | G21: 0 | L21: Ablageorte | M21: "Bereitschaft zur Wissensteilung" | P21: =Q21+0.002 -> €0.00 | Q21: 0 | V21: Bereitschaft zur Wissensteilung | X21: "Erfolg der eingesetzten Methoden" | AA21: =AB21+0.002 -> €0.00 | AB21: 0 | AG21: Erfolg der eingesetzten Methode | AH21: "Projekterfahrungen diskutieren" | AJ21: =AK21+0.002 -> €0.00 | AK21: 0 | AL21: =IF(AK21=0,"",IF(AND($AK$25<=75%,AK21<5),CONCATENATE($AR$21,$AU$21,$AL$22),"")) ->  | AM21: Projekterfahrung diskutieren
AL22: Wenn z.B. das ganze Projektteam in einem moderierten Debriefing die Eigenarten des abgeschlossenen Projekts bespricht, bekommt das, was zunächst nur ein Gefühl zum Projektverlauf ist, eine konkrete Erfahrung und lässt sich leichter für das nächste Projekt verwerten.
C23: "Aktualität des gespeicherten Wissens" | F23: =G23+0.003 -> €0.00 | G23: 0 | L23: Aktualität | M23: "formelle Methoden des Wissensaustauschs" | P23: =Q23+0.003 -> €0.00 | Q23: 0 | V23: formelle Methoden des Wissensaustauschs | X23: "Einbeziehung der Kunden" | AA23: =AB23+0.003 -> €0.00 | AB23: 0 | AG23: Einbeziehung der Kunden | AH23: "Wiederverwendung vorhandenen Wissens" | AJ23: =AK23+0.003 -> €0.00 | AK23: 0 | AL23: =IF(AK23=0,"",IF(AND($AK$25<=75%,AK23<5),CONCATENATE($AR$21,$AU$21,$AL$24),"")) ->  | AM23: Wiederverwendung vorhanden Wissens
AL24: Lassen Sie sich nicht wertvolle Erfahrungen entgleiten, weil niemand sie dokumentiert oder weitergegeben hat. Etablieren Sie einfache Mechanismen, die die Projektbeteiligten dazu bringen, ihr Erfahrungswissen preiszugeben. (z.B. Debriefing, Mikroartikel, Kundendatenbank)
G25: =IF(G27=3,0,(SUM(G19:G23)-(3-G27))/(12-(G27*4))) -> 0% | Q25: =IF(Q27=3,0,(SUM(Q19:Q23)-(3-Q27))/(12-(Q27*4))) -> 0% | AB25: =IF(AB27=3,0,((SUM(AB19:AB23)-(3-AB27))/(12-(AB27*4)))) -> 0% | AK25: =IF(AK27,0,(SUM(AK19:AK23)-(3-AK27))/(12-(AK27*4))) -> 0%
G26: =IF(OR(G19=0,G21=0,G23=0),"",IF(OR(G25>80%),CHAR(74),IF(OR(G25<49%),CHAR(76),CHAR(75)))) ->  | H26: =IF(OR(G19=0,G21=0,G23=0),"",IF(OR(G$25>80%),CONCATENATE($AR$19),IF(OR(G$25<49%),CONCATENATE($AR$17),CONCATENATE($AR$18)))) ->  | L26: Die Speicherung von Wissen kann auf der individuellen (Bindung der Person an das Unternehmen), der kollektiven (Teambuilding) oder der elektronischen Ebene stattfinden. Im Kern geht es darum, wichtiges Wissen im Unternehmen zu bewahren. Die Güte der Kernaktivität äußert sich sowohl in der Schnelligkeit, in der Wissen gefunden werden kann, als auch in der Aktualität des Wissens. Einheitliche Speicherstrukturen und -regeln werden hier beispielsweise hinsichtlich ihrer Effizienz bewertet. | Q26: =IF(OR(Q19=0,Q21=0,Q23=0),"",IF(OR(Q25>80%),CHAR(74),IF(OR(Q25<49%),CHAR(76),CHAR(75)))) ->  | R26: =IF(OR(Q19=0,Q21=0,Q23=0),"",IF(OR(Q$25>80%),CONCATENATE($AR$19),IF(OR(Q$25<50%),CONCATENATE($AR$17),CONCATENATE($AR$18)))) ->  | W26: Um Wissen für die relevanten Personen nutzbar zu machen, muss es verteilt werden. Das Teilen von Wissen wird durch die technische Infrastruktur erleichtert, ersetzt jedoch nicht die Bereitschaft jedes einzelnen Mitarbeiters zur Wissensteilung. Neben formellen Verfahren zum Wissensaustausch (z.B. Besprechungen) spielen hier auch kulturelle Aspekte eine Rolle. Eine Differenzierzung nach abteilungsinterner und abteilungsübergreifender Wissensteilung kann wichtige Ansatzpunkte für die Einführung von Wissensmanagement liefern. | AB26: =IF(OR(AB19=0,AB21=0,AB23=0),"",IF(OR(AB25>80%),CHAR(74),IF(OR(AB25<49%),CHAR(76),CHAR(75)))) ->  | AC26: =IF(OR(AB19=0,AB21=0,AB23=0),"",IF(OR(AB$25>80%),CONCATENATE($AR$19),IF(OR(AB$25<49%),CONCATENATE($AR$17),CONCATENATE($AR$18,)))) ->  | AG26: Bei der Wissenserzeugung wird neues Wissen intern entwickelt oder aus dem Umfeld des Unternehmens bezogen. Die Erzeugung von Wissen weist oft hohen kreativen schöpferischen Anteil auf. Der Einsatz von Methoden zur bewussten Steuerung dieses Prozesses, wie z.B. die Diskussion und Reflexion von Projekterfahrungen, wird hier hinterfragt. Neues Wissen kann aber auch durch Schulungen, Kundengesprächen oder durch die Einstellung neuer Mitarbeiter erworben werden. | AK26: =IF(OR(AK19=0,AK21=0,AK23=0),"",IF(OR(AK25>80%),CHAR(74),IF(OR(AK25<49%),CHAR(76),CHAR(75)))) ->  | AL26: =IF(OR(AK19=0,AK21=0,AK23=0),"",IF(OR(AK$25>80%),CONCATENATE($AR$19),IF(OR(AK$25<50%),CONCATENATE($AR$17),CONCATENATE($AR$18)))) ->  | AP26: Wissen schafft erst durch seine Anwendung wert. Der zielgerichtete Einsatz von Wissen zur Lösung einer Aufgabenstellung wird unter der Anwendung von Wissen betrachtet. Wichtig ist hierbei auch die Transparenz über Wissensträger im Unternehmen. Ist diese gegebenen, so kann schnell auf deren Erfahrungen zurückgegriffen werden.
G27: =COUNTIF(G19:G23,0) -> 3 | Q27: =COUNTIF(Q19:Q23,0) -> 3 | AB27: =COUNTIF(AB19:AB23,0) -> 3 | AK27: =COUNTIF(AK19:AK23,0) -> 3
C29: 3. | D29: Rahmenbedingungen
X31: "Mensch" | AB31: Mitarbeiter und Führungskräfte
Q32: Aspekte der Organisation | X32: Kompetenzen der Mitarbeiter | AJ32: Satzbausteine allgemein
Q33: 0 | X33: "Kompetenzentwicklung der Mitarbeiter" | AA33: =AB33+0.001 -> 0.001 | AB33: 0 | AI33: Mitarbeiterentwicklung | AJ33: 0-50% | AK33: Handlungsbedarf: Hoch
C34: "Technik" | G34: technischen Infrastruktur | Q34: 0 | X34: "Transparenz über Mitarbeiterkompetenzen" | AA34: =AB34+0.002 -> 0.002 | AB34: 0 | AI34: Mitarbeiterkompetenz | AJ34: 50%>x<80% | AK34: Handlungsbedarf: Mittel
C35: "Berücksichtigung vorhandener Systeme" | F35: =G35+0.001 -> 0.001 | G35: 0 | L35: vorhandene Systeme | Q35: 0 | S35: Unternehmenskultur | X35: "Mitarbeitermotivation" | AA35: =AB35+0.003 -> 0.003 | AB35: 0 | AI35: Mitarbewitermotivation | AJ35: >=80% | AK35: Handlungsbedarf: Gering
C36: "Einweisung in die Systeme" | F36: =G36+0.002 -> 0.002 | G36: 0 | L36: Einweisung in Systeme | P36: =COUNTIF(Q33:Q36,0) -> 4 | Q36: 0 | X36: Kompetenzen der Führungskraft
C37: "Datenqualität" | F37: =G37+0.003 -> 0.003 | G37: 0 | L37: Datenqualität | P37: =Q37+0.001 -> 0.001 | Q37: =IF(P36=4,0,(SUM(Q33:Q36))/(4-P36)) -> 0 | V37: Unternehmenskultur | X37: "Vorbildfunktion der Führungskraft" | AA37: =AB37+0.004 -> 0.004 | AB37: 0
C38: "Zugriffszeiten" | F38: =G38+0.004 -> 0.004 | G38: 0 | L38: Zugriffszeiten | P38: =Q38+0.002 -> 0.002 | Q38: 0 | V38: Struckturen und Verantwortlichkeiten | X38: "Förderung der abteilungsübergreifenden Zusammenarbeit durch die Führungskraft" | AA38: =AB38+0.005 -> 0.005 | AB38: 0
C39: "Verzeichnisstrukturen" | F39: =G39+0.005 -> 0.005 | G39: 0 | L39: Verzeichnisstruktur | P39: =Q39+0.003 -> 0.003 | Q39: 0 | V39: Transparenz über Prozesse | X39: "Anerkennung durch die Führungskraft" | AA39: =AB39+0.006 -> 0.006 | AB39: 0
G40: =IF(G42=5,0,(SUM(G35:G39)-(5-G42))/(20-(G42*4))) -> 0% | Q40: =IF(Q42=3,0,(SUM(Q37:Q39)-(3-Q42))/((12-(Q42*4)))) -> 0% | AB40: =IF(AB42=6,0,((SUM(AB37:AB39)+SUM(AB33:AB35))-(6-AB42))/(24-(AB42*4))) -> 0%
G41: =IF(OR(G35=0,G36=0,G37=0,G38=0,G39=0),"",IF(OR(G40>79%),CHAR(74),IF(OR(G40<49%),CHAR(76),CHAR(75)))) ->  | H41: =IF(OR(G38=0,G39=0),"",IF(OR(G$40>80%),CONCATENATE($AK$35),IF(OR(G$40<49%),CONCATENATE($AK$33),CONCATENATE($AK$34)))) ->  | L41: Die Informationstechnik bietet zahlreiche Lösungen an, die ein wirksames Wissensmanagement unterstützen. Hierzu zählt z.B. ein gut funktionierendes Intranet oder andere IT-Anwendungen, die Kommunikation und Kooperation erleichtern sowie den bedarfsgerechten Zugriff auf Informationen ermöglichen. Das Gestaltungsfeld "Technik" kann folglich dabei helfen, das Wissensmanagement in Unternehmen wesentlich zu entwickeln. | Q41: =IF(OR(Q38=0,Q39=0),"",IF(OR(Q40>75%),CHAR(74),IF(OR(Q40<49%),CHAR(76),CHAR(75)))) ->  | R41: =IF(OR(Q38=0,Q39=0),"",IF(OR(Q$40>80%),CONCATENATE($AK$35),IF(OR(Q$40<49%),CONCATENATE($AK$33),CONCATENATE($AK$34)))) ->  | W41: Die Durchdringung der Organisation mit Wissensmanagement hängt maßgeblich davon ab, inwiefern die vorhandenen Strukturen und Prozesse eine reibungslose Ausführung der WM-Kernaktivitäten ermöglichen. Im Gestaltungsfeld "Organisation" gilt es ferner, eine offene Wissen- und Kommunikationskultur zwischen einzelnen Abteilungen, Teams und Mitarbeitern zu fördern. | AB41: =IF(OR(AB33=0,AB34=0,AB35=0,AB37=0,AB38=0,AB39=0),"",IF(OR(AB40>80%),CHAR(74),IF(OR(AB40<49%),CHAR(76),CHAR(75)))) ->  | AC41: =IF(OR(AB35=0,X36=0,AB37=0,AB38=0,AB39=0),"",IF(OR(AB40>80%),CONCATENATE($AK$35),IF(OR(AB40<49%),CONCATENATE($AK$33),CONCATENATE($AK$34)))) ->  | AG41: Die Mitarbeiter und Führungskräfte eines Unternehmens sind Träger von Wissen, Erfahrungen und Kompetenzen. Sie stellen die Erfolgsfaktoren des Unternehmens dar. Im Gestaltungsfeld "Mensch" betrachten Sie daher beispielsweise Qualifikationen und zeigen Entwicklungsbedarfe auf. Fehlen wichtige Kompetenzen im Unternehmen, kommt dem Personalmanagement die Aufgabe zu, passende Fortbildungs- und Qualifizierungskonzepte auszuarbeiten.
G42: =COUNTIF(G35:G39,0) -> 5 | Q42: =COUNTIF(Q37:Q39,0) -> 3 | AB42: =COUNTIF(AB33:AB39,0) -> 6

Sheet Für Gesamtauswertung (hidden)
A1: Teil I | E1: Teil II | I1: Teil III
A2: Wissensbedarf | B2: Wissensverfügbarkeit | D2: Wissen erzeugen | E2: Wissen Speichern | F2: Wissen Verteilen | G2: Wissen Anwenden | I2: Technik | J2: Organisation | K2: Mensch
A3: =Datenblatt!D7 -> 0 | B3: =Datenblatt!I7 -> 0 | D3: =Datenblatt!AB25 -> 0% | E3: =Datenblatt!G25 -> 0% | F3: =Datenblatt!Q25 -> 0% | G3: =Datenblatt!AK25 -> 0% | I3: =Datenblatt!G40 -> 0% | J3: =Datenblatt!Q40 -> 0% | K3: =Datenblatt!AB40 -> 0%
A4: =Datenblatt!D8 -> 0 | B4: =Datenblatt!I8 -> 0
A5: =Datenblatt!D9 -> 0 | B5: =Datenblatt!I9 -> 0
A6: =Datenblatt!D10 -> 0 | B6: =Datenblatt!I10 -> 0
A7: =Datenblatt!D11 -> 0 | B7: =Datenblatt!I11 -> 0
A8: =Datenblatt!D12 -> 0 | B8: =Datenblatt!I12 -> 0
A9: =Datenblatt!D13 -> 0 | B9: =Datenblatt!I13 -> 0
A10: =Datenblatt!D14 -> 0 | B10: =Datenblatt!I14 -> 0
